fUSD/lending_fUSD_20240318
["ID","MTS","AMOUNT","RATE_DAILY","PERIOD"]
[319422735,1710726657899,-500.0,0.00026699,2]
[319422736,1710726657911,-500.0,0.00026699,2]
[319422737,1710726657921,-713.34,0.00026699,2]
[319422738,1710726657932,-500.0,0.00026699,2]
[319422739,1710726657943,-500.0,0.00026699,2]
[319422740,1710726657954,-500.0,0.00026699,2]
[319422741,1710726657964,-500.0,0.00026699,2]
[319422742,1710726657975,-500.0,0.00026699,2]
[319422743,1710726657985,-500.0,0.00026699,2]
[319422744,1710726657997,-500.0,0.00026699,2]
[319422745,1710726658008,-500.0,0.00026699,2]
[319422746,1710726658018,-500.0,0.00026699,2]
[319422747,1710726658028,-500.0,0.00026699,2]
[319422748,1710726658037,-500.0,0.00026699,2]
[319422749,1710726658047,-500.0,0.00026699,2]
[319422750,1710726658058,-500.0,0.00026699,2]
[319422751,1710726658070,-500.0,0.00026699,2]
[319422752,1710726658083,-1734.88,0.00026699,2]
[319422753,1710726658094,-850.61,0.00026699,2]
[319422754,1710726658105,-500.0,0.00026699,2]
[319422755,1710726658116,-505.71951026,0.00026699,2]
[319422756,1710726658127,-500.0,0.00026699,2]
[319422757,1710726658138,-570.81,0.00026699,2]
[319422758,1710726658148,-500.0,0.00026699,2]
[319422759,1710726658158,-500.0,0.00026699,2]
[319422760,1710726658170,-500.0,0.00026699,2]
[319422761,1710726658180,-500.0,0.00026699,2]
[319422762,1710726658189,-500.0,0.00026699,2]
[319422763,1710726658199,-500.0,0.00026699,2]
[319422764,1710726658208,-500.0,0.00026699,2]
[319422765,1710726658218,-1978.28,0.00026699,2]
[319422766,1710726658228,-500.0,0.00026699,2]
[319422767,1710726658239,-500.0,0.00026699,2]
[319422768,1710726658250,-500.0,0.00026699,2]
[319422769,1710726658260,-504.69780661,0.00026699,2]
[319422770,1710726658270,-500.0,0.00026699,2]
[319422771,1710726658281,-500.0,0.00026699,2]
[319422772,1710726658291,-500.0,0.00026699,2]
[319422773,1710726658303,-500.0,0.00026699,2]
[319422774,1710726658314,-500.0,0.00026699,2]
[319422775,1710726658325,-500.0,0.00026699,2]
[319422776,1710726658337,-500.0,0.00026699,2]
[319422777,1710726658349,-500.0,0.00026699,2]
[319422778,1710726658359,-500.0,0.00026699,2]
[319422779,1710726658370,-500.0,0.00026699,2]
[319422780,1710726658380,-583.89,0.00026699,2]
[319422781,1710726658390,-500.0,0.00026699,2]
[319422782,1710726658399,-938.25,0.00026699,2]
[319422783,1710726658409,-500.0,0.00026699,2]
[319422784,1710726658419,-500.0,0.00026699,2]
[319422785,1710726658428,-500.0,0.00026699,2]
[319422786,1710726658439,-500.0,0.00026699,2]
[319422787,1710726658449,-637.44164423,0.00026699,2]
[319422788,1710726658460,-500.0,0.00026699,2]
[319422789,1710726658470,-758.32,0.00026699,2]
[319422790,1710726658481,-500.0,0.00026699,2]
[319422791,1710726658491,-641.41,0.00026699,2]
[319422792,1710726658502,-500.0,0.00026699,2]
[319422793,1710726658513,-500.0,0.00026699,2]
[319422794,1710726658523,-500.0,0.00026699,2]
[319422795,1710726658532,-332.21777929,0.00026699,2]
[319422796,1710726658540,-500.0,0.00026699,2]
[319422797,1710726658549,-500.0,0.00026699,2]
[319422798,1710726658558,-500.0,0.00026699,2]
[319422799,1710726658568,-7117.0,0.000267,2]
[319422800,1710726658577,-150.0,0.00026748,2]
[319422801,1710726658589,-375.24,0.00026798,2]
[319422802,1710726658599,-10000.0,0.00027,2]
[319422803,1710726658608,-167.63953181,0.00027,2]
[319422804,1710726658618,-1050.0,0.00027,3]
[319422805,1710726658628,-49400.63551019,0.00027011,2]
[319422806,1710726658637,-150.0,0.0002714,2]
[319422807,1710726658647,-14685.0,0.00027183,5]
[319422808,1710726658656,-150.0,0.00027253,2]
[319422809,1710726658666,-1026.0,0.00027263,2]
[319422810,1710726658676,-500.0,0.00027295,2]
[319422811,1710726658685,-500.0,0.00027296,2]
[319422812,1710726658695,-500.0,0.00027296,2]
[319422813,1710726658705,-511.64471433,0.00027296,2]
[319422814,1710726658715,-408.44926587,0.00027296,2]
[319422815,1710726658725,-1562.98,0.00027296,2]
[319422816,1710726658733,-1562.98,0.00027296,2]
[319422817,1710726658743,-1562.98,0.00027296,2]
[319422818,1710726658751,-1562.98,0.00027296,2]
[319422819,1710726658762,-1562.98,0.00027296,2]
[319422820,1710726658772,-502.80841778,0.00027296,2]
[319422821,1710726658781,-500.0,0.00027296,2]
[319422822,1710726658792,-500.0,0.00027296,2]
[319422823,1710726658801,-500.0,0.00027296,2]
[319422824,1710726658811,-500.0,0.00027296,2]
[319422825,1710726658821,-1073.68,0.00027296,2]
[319422826,1710726658832,-500.0,0.00027296,2]
[319422827,1710726658843,-387.9403715,0.00027296,2]
[319422828,1710726658853,-500.0,0.00027296,2]
[319422829,1710726658862,-500.0,0.00027296,2]
[319422830,1710726658875,-563.53,0.00027296,2]
[319422831,1710726658886,-743.99,0.00027296,2]
[319422832,1710726658897,-500.0,0.00027296,2]
[319422833,1710726658908,-500.0,0.00027296,2]
[319422834,1710726658918,-500.0,0.00027296,2]
[319422835,1710726658928,-206.04290632,0.00027296,2]
[319422836,1710726658939,-500.0,0.00027296,2]
[319422837,1710726658950,-500.0,0.00027296,2]
[319422838,1710726658961,-500.0,0.00027296,2]
[319422839,1710726658973,-500.0,0.00027296,2]
[319422840,1710726658984,-500.0,0.00027296,2]
[319422841,1710726658994,-500.0,0.00027296,2]
[319422842,1710726659005,-500.0,0.00027296,2]
[319422843,1710726659015,-500.0,0.00027296,2]
[319422844,1710726659025,-500.0,0.00027296,2]
[319422845,1710726659038,-500.0,0.00027296,2]
[319422846,1710726659048,-500.0,0.00027296,2]
[319422847,1710726659058,-500.0,0.00027296,2]
[319422848,1710726659068,-500.0,0.00027296,2]
[319422849,1710726659079,-500.0,0.00027296,2]
[319422850,1710726659089,-713.34,0.00027296,2]
[319422851,1710726659100,-500.0,0.00027296,2]
[319422852,1710726659110,-500.0,0.00027296,2]
[319422853,1710726659121,-500.0,0.00027296,2]
[319422854,1710726659131,-500.0,0.00027296,2]
[319422855,1710726659142,-500.0,0.00027296,2]
[319422856,1710726659151,-500.0,0.00027296,2]
[319422857,1710726659162,-500.0,0.00027296,2]
[319422858,1710726659172,-500.0,0.00027296,2]
[319422859,1710726659184,-500.0,0.00027296,2]
[319422860,1710726659195,-500.0,0.00027296,2]
[319422861,1710726659205,-500.0,0.00027296,2]
[319422862,1710726659216,-500.0,0.00027296,2]
[319422863,1710726659226,-500.0,0.00027296,2]
[319422864,1710726659237,-500.0,0.00027296,2]
[319422865,1710726659247,-500.0,0.00027296,2]
[319422866,1710726659258,-500.0,0.00027296,2]
[319422867,1710726659268,-500.0,0.00027296,2]
[319422868,1710726659280,-500.0,0.00027296,2]
[319422869,1710726659290,-500.0,0.00027296,2]
[319422870,1710726659301,-500.0,0.00027296,2]
[319422871,1710726659313,-505.31895789,0.00027296,2]
[319422872,1710726659323,-500.0,0.00027296,2]
[319422873,1710726659335,-500.0,0.00027296,2]
[319422874,1710726659345,-500.0,0.00027296,2]
[319422875,1710726659355,-500.0,0.00027296,2]
[319422876,1710726659365,-602.43852047,0.00027296,2]
[319422877,1710726659375,-500.0,0.00027296,2]
[319422878,1710726659385,-500.0,0.00027296,2]
[319422879,1710726659395,-500.0,0.00027296,2]
[319422880,1710726659407,-500.93046641,0.00027296,2]
[319422881,1710726659426,-500.0,0.00027296,2]
[319422882,1710726659437,-500.0,0.00027296,2]
[319422883,1710726659447,-500.0,0.00027296,2]
[319422884,1710726659458,-500.0,0.00027296,2]
[319422885,1710726659468,-500.0,0.00027296,2]
[319422886,1710726659478,-500.0,0.00027296,2]
[319422887,1710726659489,-500.0,0.00027296,2]
[319422888,1710726659500,-500.0,0.00027296,2]
[319422889,1710726659511,-500.0,0.00027296,2]
[319422890,1710726659521,-542.2047132,0.00027296,2]
[319422891,1710726659533,-500.0,0.00027296,2]
[319422892,1710726659544,-500.0,0.00027296,2]
[319422893,1710726659554,-500.0,0.00027296,2]
[319422894,1710726659563,-500.0,0.00027296,2]
[319422895,1710726659573,-500.0,0.00027296,2]
[319422896,1710726659584,-500.0,0.00027296,2]
[319422897,1710726659594,-1734.88,0.00027296,2]
[319422898,1710726659603,-500.0,0.00027296,2]
[319422899,1710726659613,-500.0,0.00027296,2]
[319422900,1710726659622,-500.0,0.00027296,2]
[319422901,1710726659631,-500.28362006,0.00027296,2]
[319422902,1710726659640,-850.61,0.00027296,2]
[319422903,1710726659650,-520.60551533,0.00027296,2]
[319422904,1710726659659,-500.0,0.00027296,2]
[319422905,1710726659669,-500.0,0.00027296,2]
[319422906,1710726659679,-500.0,0.00027296,2]
[319422907,1710726659689,-602.8671305,0.00027296,2]
[319422908,1710726659698,-500.0,0.00027296,2]
[319422909,1710726659708,-500.0,0.00027296,2]
[319422910,1710726659718,-500.0,0.00027296,2]
[319422911,1710726659728,-500.0,0.00027296,2]
[319422912,1710726659737,-500.0,0.00027296,2]
[319422913,1710726659747,-500.0,0.00027296,2]
[319422914,1710726659756,-500.0,0.00027296,2]
[319422915,1710726659767,-500.0,0.00027296,2]
[319422916,1710726659777,-500.0,0.00027296,2]
[319422917,1710726659787,-500.0,0.00027296,2]
[319422918,1710726659796,-500.0,0.00027296,2]
[319422919,1710726659806,-570.81,0.00027296,2]
[319422920,1710726659816,-500.0,0.00027296,2]
[319422921,1710726659826,-500.0,0.00027296,2]
[319422922,1710726659837,-500.0,0.00027296,2]
[319422923,1710726659847,-500.0,0.00027296,2]
[319422924,1710726659857,-500.0,0.00027296,2]
[319422925,1710726659868,-442.35764534,0.00027296,2]
[319422926,1710726659882,-500.0,0.00027296,2]
[319422927,1710726659892,-500.0,0.00027296,2]
[319422928,1710726659902,-500.0,0.00027296,2]
[319422929,1710726659912,-500.0,0.00027296,2]
[319422930,1710726659923,-500.0,0.00027296,2]
[319422931,1710726659934,-500.0,0.00027296,2]
[319422932,1710726659945,-517.87282366,0.00027296,2]
[319422933,1710726659957,-500.0,0.00027296,2]
[319422934,1710726659967,-500.0,0.00027296,2]
[319422935,1710726659976,-500.0,0.00027296,2]
[319422936,1710726659987,-500.0,0.00027296,2]
[319422937,1710726659998,-500.0,0.00027296,2]
[319422938,1710726660010,-420.71701808,0.00027296,2]
[319422939,1710726660020,-500.0,0.00027296,2]
[319422940,1710726660030,-500.0,0.00027296,2]
[319422941,1710726660042,-1978.28,0.00027296,2]
[319422942,1710726660053,-500.0,0.00027296,2]
[319422943,1710726660063,-500.0,0.00027296,2]
[319422944,1710726660075,-500.0,0.00027296,2]
[319422945,1710726660087,-603.69261633,0.00027296,2]
[319422946,1710726660098,-500.0,0.00027296,2]
[319422947,1710726660109,-500.0,0.00027296,2]
[319422948,1710726660120,-500.0,0.00027296,2]
[319422949,1710726660131,-500.0,0.00027296,2]
[319422950,1710726660142,-500.0,0.00027296,2]
[319422951,1710726660153,-463.87365718,0.00027296,2]
[319422952,1710726660164,-500.0,0.00027296,2]
[319422953,1710726660176,-500.0,0.00027296,2]
[319422954,1710726660186,-500.0,0.00027296,2]
[319422955,1710726660196,-500.0,0.00027296,2]
[319422956,1710726660204,-500.0,0.00027296,2]
[319422957,1710726660214,-500.0,0.00027296,2]
[319422958,1710726660225,-500.0,0.00027296,2]
[319422959,1710726660236,-455.1281599,0.00027296,2]
[319422960,1710726660247,-500.0,0.00027296,2]
[319422961,1710726660257,-500.0,0.00027296,2]
[319422962,1710726660268,-500.0,0.00027296,2]
[319422963,1710726660278,-500.0,0.00027296,2]
[319422964,1710726660288,-500.0,0.00027296,2]
[319422965,1710726660298,-500.0,0.00027296,2]
[319422966,1710726660308,-500.0,0.00027296,2]
[319422967,1710726660317,-500.0,0.00027296,2]
[319422968,1710726660327,-500.0,0.00027296,2]
[319422969,1710726660340,-500.0,0.00027296,2]
[319422970,1710726660350,-500.0,0.00027296,2]
[319422971,1710726660359,-500.99134824,0.00027296,2]
[319422972,1710726660370,-500.0,0.00027296,2]
[319422973,1710726660380,-506.51941127,0.00027296,2]
[319422974,1710726660390,-500.0,0.00027296,2]
[319422975,1710726660400,-501.51829324,0.00027296,2]
[319422976,1710726660410,-500.0,0.00027296,2]
[319422977,1710726660421,-500.0,0.00027296,2]
[319422978,1710726660431,-500.0,0.00027296,2]
[319422979,1710726660441,-500.0,0.00027296,2]
[319422980,1710726660452,-500.0,0.00027296,2]
[319422981,1710726660461,-500.0,0.00027296,2]
[319422982,1710726660473,-500.0,0.00027296,2]
[319422983,1710726660483,-583.89,0.00027296,2]
[319422984,1710726660493,-532.82706247,0.00027296,2]
[319422985,1710726660504,-313.83226913,0.00027296,2]
[319422986,1710726660514,-500.0,0.00027296,2]
[319422987,1710726660523,-938.25,0.00027296,2]
[319422988,1710726660534,-501.72267756,0.00027296,2]
[319422989,1710726660545,-500.0,0.00027296,2]
[319422990,1710726660555,-500.0,0.00027296,2]
[319422991,1710726660565,-500.0,0.00027296,2]
[319422992,1710726660575,-500.0,0.00027296,2]
[319422993,1710726660587,-500.0,0.00027296,2]
[319422994,1710726660597,-511.16262684,0.00027296,2]
[319422995,1710726660607,-500.0,0.00027296,2]
[319422996,1710726660618,-500.54177848,0.00027296,2]
[319422997,1710726660629,-364.12830627,0.00027296,2]
[319422998,1710726660639,-500.0,0.00027296,2]
[319422999,1710726660649,-500.0,0.00027296,2]
[319423000,1710726660659,-500.0,0.00027296,2]
[319423001,1710726660669,-500.0,0.00027296,2]
[319423002,1710726660679,-410.38433668,0.00027296,2]
[319423003,1710726660688,-510.18624491,0.00027296,2]
[319423004,1710726660698,-758.32,0.00027296,2]
[319423005,1710726660708,-592.05385179,0.00027296,2]
[319423006,1710726660718,-500.0,0.00027296,2]
[319423007,1710726660729,-500.0,0.00027296,2]
[319423008,1710726660738,-502.02229598,0.00027296,2]
[319423009,1710726660861,-500.0,0.00027296,2]
[319423010,1710726660872,-500.0,0.00027296,2]
[319423011,1710726660885,-500.0,0.00027296,2]
[319423012,1710726660895,-515.44,0.00027296,2]
[319423013,1710726660905,-500.0,0.00027296,2]
[319423014,1710726660915,-641.41,0.00027296,2]
[319423015,1710726660925,-500.0,0.00027296,2]
[319423016,1710726660935,-500.0,0.00027296,2]
[319423017,1710726660946,-500.0,0.00027296,2]
[319423018,1710726660957,-500.0,0.00027296,2]
[319423019,1710726660968,-533.85976812,0.00027296,2]
[319423020,1710726660978,-500.0,0.00027296,2]
[319423021,1710726660989,-500.0,0.00027296,2]
[319423022,1710726661000,-637.58833264,0.00027296,2]
[319423023,1710726661010,-500.0,0.00027296,2]
[319423024,1710726661020,-500.0,0.00027296,2]
[319423025,1710726661030,-500.0,0.00027296,2]
[319423026,1710726661041,-500.0,0.00027296,2]
[319423027,1710726661052,-500.0,0.00027296,2]
[319423028,1710726661062,-500.0,0.00027296,2]
[319423029,1710726661073,-500.0,0.00027296,2]
[319423030,1710726661086,-500.0,0.00027296,2]
[319423031,1710726661096,-500.0,0.00027296,2]
[319423032,1710726661106,-500.0,0.00027296,2]
[319423033,1710726661116,-500.0,0.00027296,2]
[319423034,1710726661125,-500.0,0.00027296,2]
[319423035,1710726661135,-500.0,0.00027296,2]
[319423036,1710726661145,-500.0,0.00027296,2]
[319423037,1710726661155,-502.56792688,0.00027296,2]
[319423038,1710726661165,-500.0,0.00027296,2]
[319423039,1710726661176,-500.0,0.00027296,2]
[319423040,1710726661186,-508.7770641,0.00027296,2]
[319423041,1710726661195,-500.0,0.00027296,2]
[319423042,1710726661204,-500.0,0.00027296,2]
[319423043,1710726661213,-500.0,0.00027296,2]
[319423044,1710726661223,-500.0,0.00027296,2]
[319423045,1710726661234,-500.0,0.00027296,2]
[319423046,1710726661245,-500.0,0.00027296,2]
[319423047,1710726661255,-500.0,0.00027296,2]
[319423048,1710726661266,-100000.0,0.00027297,2]
[319423049,1710726661276,-242511.06453714,0.00027297,2]
[319423050,1710726661531,-2488.93546286,0.00027297,2]
[319423051,1710726661542,-1732.7416809,0.00027376,2]
[319423052,1710726661553,-300.0,0.00027397,5]
[319423053,1710726661564,-150.0,0.00027397,2]
[319423054,1710726661574,-1072.5875,0.00027397,2]
[319423055,1710726661585,-1807.7,0.00027397,10]
[319423056,1710726661595,-155.0,0.00027398,2]
[319423057,1710726661606,-5617.04,0.000274,2]
[319423058,1710726661615,-5617.04,0.000274,2]
[319423059,1710726661625,-999.04,0.0002748,2]
[319423060,1710726661635,-150.0,0.00027758,2]
[319423061,1710726661645,-1321.001751,0.000278,2]
[319423062,1710726661654,-505.198969,0.000278,2]
[319423063,1710726661665,-300.0,0.00027945,5]
[319423064,1710726661675,-150.0,0.00027945,2]
[319423065,1710726661686,-1000.0,0.00027945,2]
[319423066,1710726661696,-600.0,0.00027957,120]
[319423067,1710726661707,-3000.0,0.00028,2]
[319423068,1710726661716,-155.0,0.00028,2]
[319423069,1710726661726,-150.0,0.0002814,2]
[319423070,1710726661736,-150.0,0.00028262,2]
[319423071,1710726661747,-1094.967,0.0002833,2]
[319423072,1710726661756,-603.0,0.0002833,2]
[319423073,1710726661765,-432.0,0.0002833,2]
[319423074,1710726661776,-1264.0,0.0002833,2]
[319423075,1710726661786,-278.0,0.0002833,2]
[319423076,1710726661795,-652.553,0.0002833,2]
[319423077,1710726661805,-150.0,0.0002833,2]
[319423078,1710726661815,-1196.087,0.0002833,2]
[319423079,1710726661825,-413.396,0.0002833,2]
[319423080,1710726661839,-4762.0,0.0002833,2]
[319423081,1710726661849,-150.0,0.0002833,2]
[319423082,1710726661859,-251.568,0.0002833,2]
[319423083,1710726661869,-150.0,0.0002833,2]
[319423084,1710726661883,-1044.0,0.0002833,2]
[319423085,1710726661892,-150.0,0.0002833,2]
[319423086,1710726661901,-150.0,0.0002833,2]
[319423087,1710726661913,-156.48553528,0.00028345,2]
[319423088,1710726661924,-440.90137565,0.00028493,5]
[319423089,1710726661934,-150.0,0.00028493,2]
[319423090,1710726661945,-1000.0,0.000285,2]
[319423091,1710726661958,-999.04,0.000286,2]
[319423092,1710726661968,-200.0,0.00028649,2]
[319423093,1710726661977,-1026.0,0.00028698,5]
[319423094,1710726661987,-49400.63551019,0.00028733,2]
[319423095,1710726661998,-541.0,0.00028744,5]
[319423096,1710726662008,-2145.175,0.00028767,2]
[319423097,1710726662017,-150.0,0.00028767,2]
[319423098,1710726662028,-155.0,0.00028768,2]
[319423099,1710726662038,-1000.0,0.00028769,2]
[319423100,1710726662048,-2810.3693,0.00028769,2]
[319423101,1710726662059,-500.0,0.00028799,2]
[319423102,1710726662071,-500.0,0.00028799,2]
[319423103,1710726662081,-500.0,0.00028799,2]
[319423104,1710726662092,-500.0,0.00028799,2]
[319423105,1710726662103,-1073.68,0.00028799,2]
[319423106,1710726662114,-500.0,0.00028799,2]
[319423107,1710726662125,-500.0,0.00028799,2]
[319423108,1710726662135,-500.0,0.00028799,2]
[319423109,1710726662145,-563.53,0.00028799,2]
[319423110,1710726662156,-743.99,0.00028799,2]
[319423111,1710726662167,-500.0,0.00028799,2]
[319423112,1710726662177,-500.0,0.00028799,2]
[319423113,1710726662187,-500.0,0.00028799,2]
[319423114,1710726662196,-500.0,0.00028799,2]
[319423115,1710726662206,-631.95644531,0.00028799,2]
[319423116,1710726662215,-500.0,0.00028799,2]
[319423117,1710726662225,-713.34,0.00028799,2]
[319423118,1710726662235,-500.0,0.00028799,2]
[319423119,1710726662245,-500.0,0.00028799,2]
[319423120,1710726662255,-500.0,0.00028799,2]
[319423121,1710726662266,-500.0,0.00028799,2]
[319423122,1710726662277,-500.0,0.00028799,2]
[319423123,1710726662288,-500.0,0.00028799,2]
[319423124,1710726662299,-500.0,0.00028799,2]
[319423125,1710726662309,-500.0,0.00028799,2]
[319423126,1710726662318,-500.0,0.00028799,2]
[319423127,1710726662328,-526.65468041,0.00028799,2]
[319423128,1710726662341,-500.0,0.00028799,2]
[319423129,1710726662352,-500.0,0.00028799,2]
[319423130,1710726662362,-500.0,0.00028799,2]
[319423131,1710726662371,-1734.88,0.00028799,2]
[319423132,1710726662382,-500.0,0.00028799,2]
[319423133,1710726662393,-850.61,0.00028799,2]
[319423134,1710726662404,-500.0,0.00028799,2]
[319423135,1710726662414,-500.0,0.00028799,2]
[319423136,1710726662424,-570.81,0.00028799,2]
[319423137,1710726662434,-500.0,0.00028799,2]
[319423138,1710726662446,-500.0,0.00028799,2]
[319423139,1710726662456,-500.0,0.00028799,2]
[319423140,1710726662466,-500.0,0.00028799,2]
[319423141,1710726662477,-500.0,0.00028799,2]
[319423142,1710726662487,-500.0,0.00028799,2]
[319423143,1710726662498,-1978.28,0.00028799,2]
[319423144,1710726662507,-500.0,0.00028799,2]
[319423145,1710726662517,-500.0,0.00028799,2]
[319423146,1710726662527,-500.0,0.00028799,2]
[319423147,1710726662538,-500.0,0.00028799,2]
[319423148,1710726662550,-612.98028266,0.00028799,2]
[319423149,1710726662561,-500.0,0.00028799,2]
[319423150,1710726662572,-500.0,0.00028799,2]
[319423151,1710726662583,-500.0,0.00028799,2]
[319423152,1710726662593,-500.0,0.00028799,2]
[319423153,1710726662604,-500.0,0.00028799,2]
[319423154,1710726662614,-500.0,0.00028799,2]
[319423155,1710726662623,-500.0,0.00028799,2]
[319423156,1710726662634,-500.0,0.00028799,2]
[319423157,1710726662645,-583.89,0.00028799,2]
[319423158,1710726662655,-500.0,0.00028799,2]
[319423159,1710726662665,-938.25,0.00028799,2]
[319423160,1710726662676,-500.0,0.00028799,2]
[319423161,1710726662687,-500.0,0.00028799,2]
[319423162,1710726662696,-500.0,0.00028799,2]
[319423163,1710726662708,-758.32,0.00028799,2]
[319423164,1710726662719,-500.0,0.00028799,2]
[319423165,1710726662730,-641.41,0.00028799,2]
[319423166,1710726662741,-500.0,0.00028799,2]
[319423167,1710726662751,-500.0,0.00028799,2]
[319423168,1710726662762,-500.0,0.00028799,2]
[319423169,1710726662772,-500.0,0.00028799,2]
[319423170,1710726662782,-500.0,0.00028799,2]
[319423171,1710726662792,-500.0,0.00028799,2]
[319423172,1710726662804,-1761.335668,0.000288,2]
[319423173,1710726662815,-673.598626,0.000288,2]
[319423174,1710726662825,-999.04,0.000288,2]
[319423175,1710726662837,-312.1,0.000288,2]
[319423176,1710726662847,-1200.97223445,0.0002889,2]
[319423177,1710726662857,-151.0,0.00028973,2]
[319423178,1710726662870,-1288.55816243,0.00029,30]
[319423179,1710726662880,-150.0,0.00029,2]
[319423180,1710726662890,-7814.9531868,0.00029,2]
[319423181,1710726662900,-359.0,0.00029,5]
[319423182,1710726662911,-180.83344926,0.00029,2]
[319423183,1710726662921,-1100.0,0.00029,3]
[319423184,1710726662931,-192.0,0.00029034,5]
[319423185,1710726662942,-150.0,0.00029041,2]
[319423186,1710726662954,-375.24,0.00029062,2]
[319423187,1710726662966,-150.0,0.0002914,2]
[319423188,1710726662976,-1732.7416809,0.00029171,2]
[319423189,1710726662986,-2188.06287764,0.000292,2]
[319423190,1710726663003,-2893.0,0.000293,2]
[319423191,1710726663017,-300.0,0.0002941,2]
[319423192,1710726663039,-200.0,0.00029429,2]
[319423193,1710726663054,-1012.18107272,0.000295,3]
[319423194,1710726663063,-150.0,0.00029589,2]
[319423195,1710726663074,-500.0,0.00029708,4]
[319423196,1710726663086,-500.0,0.00029708,4]
[319423197,1710726663096,-500.0,0.00029708,4]
[319423198,1710726663105,-500.0,0.00029708,4]
[319423199,1710726663114,-500.0,0.00029708,4]
[319423200,1710726663123,-500.0,0.00029708,4]
[319423201,1710726663132,-500.0,0.00029708,4]
[319423202,1710726663141,-500.0,0.00029708,4]
[319423203,1710726663150,-500.0,0.00029708,4]
[319423204,1710726663159,-500.0,0.00029708,4]
[319423205,1710726663168,-500.0,0.00029708,4]
[319423206,1710726663177,-500.0,0.00029708,4]
[319423207,1710726663186,-500.0,0.00029708,4]
[319423208,1710726663195,-500.0,0.00029708,4]
[319423209,1710726663204,-500.0,0.00029708,4]
[319423210,1710726663213,-500.0,0.00029708,4]
[319423211,1710726663222,-500.0,0.00029708,4]
[319423212,1710726663231,-500.0,0.00029708,4]
[319423213,1710726663242,-291.0,0.00029708,4]
[319423214,1710726663252,-500.0,0.00029708,4]
[319423215,1710726663263,-500.0,0.00029708,4]
[319423216,1710726663274,-500.0,0.00029708,4]
[319423217,1710726663284,-500.0,0.00029708,4]
[319423218,1710726663295,-999.04,0.0002972,2]
[319423219,1710726663305,-2201.669585,0.000298,2]
[319423220,1710726663315,-841.998283,0.000298,2]
[319423221,1710726663325,-200.0,0.00029819,7]
[319423222,1710726663338,-1562.98,0.00029899,2]
[319423223,1710726663348,-500.0,0.00029899,2]
[319423224,1710726663358,-500.0,0.00029899,2]
[319423225,1710726663368,-500.0,0.00029899,2]
[319423226,1710726663509,-500.0,0.00029899,2]
[319423227,1710726663518,-500.0,0.00029899,2]
[319423228,1710726663527,-500.0,0.00029899,2]
[319423229,1710726663537,-497.40418988,0.00029899,2]
[319423230,1710726663546,-500.0,0.00029899,2]
[319423231,1710726663555,-500.0,0.00029899,2]
[319423232,1710726663564,-500.0,0.00029899,2]
[319423233,1710726663574,-500.0,0.00029899,2]
[319423234,1710726663583,-180.44113342,0.00029899,2]